bitfinex-derivatives/quotes_BTCF0:USTF0_20241210
["timestamp","ask_amount","ask_price","bid_price","bid_amount"]
[1733825747157,0.06853821,97684.0,97683.0,0.81183024]
[1733825747544,0.06853821,97684.0,97683.0,1.11720854]
[1733825748150,0.06853821,97684.0,97683.0,0.81183024]
[1733825748643,0.06853821,97684.0,97683.0,1.11729836]
[1733825749050,0.06853821,97684.0,97683.0,0.68137812]
[1733825749557,0.06853821,97684.0,97683.0,0.37591]
[1733825749752,0.06853821,97684.0,97683.0,0.3748]
[1733825750254,0.06853821,97684.0,97683.0,0.34864]
[1733825750659,1.56853821,97684.0,97683.0,0.34864]
[1733825751358,0.06853821,97684.0,97683.0,0.34864]
[1733825752858,0.08389822,97684.0,97683.0,0.34864]
[1733825753646,0.03273122,97684.0,97683.0,0.34864]
[1733825756654,0.03273122,97684.0,97683.0,0.399808]
[1733825757353,0.03273122,97684.0,97683.0,0.699808]
[1733825757555,0.01536001,97694.0,97693.0,0.051162]
[1733825757954,0.03192344,97694.0,97693.0,0.051202]
[1733825758161,0.01536001,97694.0,97693.0,0.051202]
[1733825758758,0.01536001,97694.0,97693.0,0.054202]
[1733825759061,0.01636001,97694.0,97693.0,0.062202]
[1733825759262,0.03234412,97694.0,97693.0,0.36777846]
[1733825759856,0.03234412,97694.0,97693.0,0.062202]
[1733825760256,0.01636001,97694.0,97693.0,0.79807171]
[1733825760454,0.01536001,97695.0,97693.0,1.32078672]
[1733825760663,0.01536001,97704.0,97703.0,0.051157]
[1733825760864,0.01536001,97704.0,97703.0,0.84782671]
[1733825761158,0.01536001,97704.0,97703.0,1.66705148]
[1733825761360,0.01536001,97704.0,97703.0,1.14786671]
[1733825761657,0.01536001,97704.0,97703.0,1.15106492]
[1733825762361,0.01536001,97704.0,97703.0,1.15406492]
[1733825762561,0.01536001,97704.0,97703.0,1.67298139]
[1733825762758,0.01536001,97713.0,97712.0,0.051152]
[1733825763059,0.34396,97733.0,97712.0,1.31530446]
[1733825763060,0.01536001,97726.0,97712.0,1.31530446]
[1733825763254,0.01536001,97726.0,97725.0,0.411946]
[1733825763454,0.01536001,97726.0,97725.0,0.84781571]
[1733825763656,0.01536001,97726.0,97725.0,1.11585152]
[1733825764156,0.36003688,97733.0,97725.0,1.11589152]
[1733825764467,0.01607688,97733.0,97732.0,0.35684682]
[1733825764669,0.10275778,97740.0,97732.0,0.43448145]
[1733825764852,0.01631863,97736.0,97734.0,0.411941]
[1733825765059,0.01631863,97736.0,97734.0,0.84642245]
[1733825765358,0.01536001,97742.0,97734.0,1.11445826]
[1733825765762,0.03122597,97742.0,97734.0,1.11445826]
[1733825766162,0.00411288,97735.0,97734.0,1.11765536]
[1733825766558,0.01011288,97735.0,97734.0,1.11765536]
[1733825767362,0.05822831,97749.0,97748.0,0.051134]
[1733825767661,0.10275778,97750.0,97748.0,0.411974]
[1733825767957,0.44667778,97758.0,97749.0,4e-05]
[1733825768359,0.44667778,97758.0,97748.0,0.412934]
[1733825768360,0.007,97749.0,97748.0,0.412934]
[1733825768757,0.01108,97749.0,97748.0,0.413934]
[1733825769065,0.00408,97749.0,97748.0,0.68096981]
[1733825769262,8e-05,97749.0,97748.0,0.67996981]
[1733825769969,0.00408,97749.0,97748.0,0.68096981]
[1733825770767,0.00908,97749.0,97748.0,0.68096981]
[1733825770963,0.00908,97749.0,97748.0,0.32016981]
[1733825771160,0.00908,97749.0,97748.0,1.04176981]
[1733825771363,0.00408,97749.0,97748.0,1.04176981]
[1733825771567,0.00408,97749.0,97748.0,1.04076981]
[1733825772373,0.00408,97749.0,97748.0,0.3608]
[1733825772874,1.51944001,97749.0,97748.0,0.3608]
[1733825775976,0.00408,97749.0,97748.0,0.411934]
[1733825776366,1.50408,97749.0,97748.0,0.411934]
[1733825777173,0.00408,97749.0,97748.0,0.411934]
[1733825778672,0.00408,97749.0,97748.0,1.04076981]
[1733825779975,7.449e-05,97757.0,97756.0,0.051129]
[1733825780281,7.449e-05,97757.0,97756.0,0.411929]
[1733825780474,1.50007449,97757.0,97756.0,0.67996481]
[1733825780670,7.449e-05,97757.0,97756.0,0.67996481]
[1733825781570,0.00407449,97757.0,97756.0,0.67996481]
[1733825782273,0.00507449,97757.0,97756.0,0.67996481]
[1733825782779,0.00507449,97757.0,97756.0,0.92324952]
[1733825783071,7.449e-05,97757.0,97756.0,0.68396481]
[1733825783474,7.449e-05,97757.0,97756.0,0.68096481]
[1733825783668,1.9778,97768.0,97756.0,0.3648]
[1733825783871,0.02046943,97782.0,97767.0,0.3608]
[1733825784068,0.00052001,97783.0,97782.0,0.051116]
[1733825784269,0.00052001,97783.0,97781.0,0.411916]
[1733825784270,0.10275778,97792.0,97790.0,0.051111]
[1733825784473,0.174107,97799.0,97791.0,0.3608]
[1733825784680,0.123,97799.0,97791.0,0.36084]
[1733825784875,0.05119077,97798.0,97791.0,0.36084]
[1733825785276,8.377e-05,97798.0,97791.0,0.411951]
[1733825785471,8.377e-05,97798.0,97791.0,0.36084]
[1733825786383,0.005,97792.0,97791.0,0.36084]
[1733825786884,0.05119077,97798.0,97791.0,0.60440601]
[1733825787176,0.05219077,97798.0,97797.0,4e-05]
[1733825787381,0.12029921,97800.0,97797.0,4e-05]
[1733825787568,0.051107,97798.0,97797.0,4e-05]
[1733825787774,0.052111,97792.0,97791.0,4e-05]
[1733825788091,0.052191,97792.0,97791.0,4e-05]
[1733825788468,0.05228352,97792.0,97791.0,4e-05]
[1733825789173,1.55128352,97792.0,97791.0,4e-05]
[1733825790077,1.55228352,97792.0,97791.0,4e-05]
[1733825790570,0.051116,97782.0,97780.0,0.29240019]
[1733825790771,0.051111,97791.0,97766.0,0.36516023]
[1733825790772,0.1182,97781.0,97766.0,0.36516023]
[1733825790974,0.46355778,97776.0,97767.0,0.41115146]
[1733825791178,0.051122,97770.0,97762.0,0.36516023]
[1733825791371,0.051122,97770.0,97763.0,0.77954437]
[1733825791570,0.051122,97770.0,97761.0,0.3608]
[1733825791571,0.051123,97768.0,97764.0,0.41438414]
[1733825791768,0.051123,97768.0,97765.0,0.41438414]
[1733825791976,0.01536001,97767.0,97766.0,0.4111877]
[1733825792373,9.252e-05,97792.0,97772.0,0.051121]
[1733825792573,9.252e-05,97792.0,97791.0,0.3608]
[1733825792880,9.252e-05,97792.0,97791.0,1.13847753]
[1733825793079,9.252e-05,97792.0,97791.0,0.7720277]
[1733825794986,9.252e-05,97792.0,97791.0,1.26212053]
[1733825795285,0.051109,97796.0,97791.0,1.26212053]
[1733825795481,0.051109,97796.0,97792.0,0.90128053]
[1733825795779,0.051109,97796.0,97795.0,0.36638903]
[1733825795780,0.051108,97796.0,97795.0,0.36638903]
[1733825795972,0.051108,97796.0,97795.0,0.4112277]
[1733825796284,0.05120375,97796.0,97795.0,0.4112277]
[1733825796474,9.575e-05,97796.0,97795.0,0.4112277]
[1733825796779,9.575e-05,97796.0,97795.0,0.77757673]
[1733825797177,0.05120375,97796.0,97795.0,0.77752892]
[1733825797478,0.05120375,97796.0,97795.0,0.777487]
[1733825797675,0.05120375,97796.0,97795.0,0.4112277]
[1733825798886,0.05220375,97796.0,97795.0,0.4112277]
[1733825799584,0.05220375,97796.0,97795.0,0.777487]
[1733825800280,0.05220375,97796.0,97795.0,0.4112277]
[1733825801584,0.05120375,97796.0,97795.0,0.4112277]
[1733825801772,0.05220375,97796.0,97795.0,0.4112277]
[1733825802384,0.05220375,97796.0,97795.0,0.4122277]
[1733825802385,0.05120375,97796.0,97795.0,0.4122277]
[1733825802882,0.12074873,97800.0,97795.0,0.6796635]
[1733825803185,0.15385378,97820.0,97808.0,0.051102]
[1733825803487,0.10275778,97818.0,97816.0,0.3608]
[1733825803679,0.051097,97817.0,97816.0,0.3608]
[1733825803879,0.05118698,97817.0,97816.0,0.3608]
[1733825804386,8.998e-05,97817.0,97807.0,0.77802709]
[1733825804571,0.051098,97816.0,97808.0,0.40578178]
[1733825804775,8.998e-05,97817.0,97809.0,0.40578178]
[1733825804977,0.0511,97813.0,97810.0,0.40578178]
[1733825805172,8.998e-05,97817.0,97811.0,0.40578178]
[1733825805373,8.998e-05,97817.0,97812.0,0.40578178]
[1733825805585,0.051099,97815.0,97813.0,0.40578178]
[1733825805784,0.051099,97815.0,97807.0,0.6292358]
[1733825805988,0.051099,97815.0,97808.0,0.40589863]
[1733825806184,0.051099,97815.0,97809.0,0.40589863]
[1733825806488,0.0511,97813.0,97810.0,0.40589863]
[1733825806681,0.0511,97813.0,97811.0,0.40589863]
[1733825806986,0.0511,97813.0,97812.0,0.40589863]
[1733825808285,0.02304509,97815.0,97812.0,0.40589863]
[1733825808488,0.02304509,97815.0,97807.0,0.72692509]
[1733825808489,0.02004509,97815.0,97813.0,0.40589863]
[1733825808677,0.05118798,97817.0,97814.0,0.40589863]
[1733825808881,0.051098,97816.0,97815.0,0.40589863]
[1733825809187,0.051098,97816.0,97807.0,0.99532089]
[1733825809188,0.051098,97816.0,97807.0,0.72788509]
[1733825809383,0.051098,97816.0,97808.0,0.77216422]
[1733825809681,0.051098,97816.0,97807.0,0.6793378]
[1733825809682,0.003,97815.0,97809.0,0.45714113]
[1733825809884,0.003,97815.0,97810.0,0.40603913]
[1733825810079,0.003,97815.0,97811.0,0.40603913]
[1733825810275,0.003,97815.0,97812.0,0.40603913]
[1733825810478,0.003,97815.0,97813.0,0.40603913]
[1733825810680,0.003,97815.0,97814.0,0.40603913]
[1733825810875,0.07167865,97817.0,97814.0,0.40603913]
[1733825811082,0.002,97816.0,97809.0,0.051101]
[1733825811382,0.002,97816.0,97810.0,0.40647367]
[1733825811576,0.002,97816.0,97811.0,0.40647367]
[1733825811782,0.003,97815.0,97812.0,0.40647367]
[1733825811981,0.003,97815.0,97813.0,0.40647367]
[1733825812186,0.003,97815.0,97814.0,0.40647367]
[1733825812384,0.02406575,97824.0,97814.0,0.40647367]
[1733825812587,0.02406575,97824.0,97808.0,0.36612509]
[1733825812588,0.002,97816.0,97815.0,0.40647367]
[1733825812992,0.002,97816.0,97807.0,0.411902]
[1733825812993,0.002,97816.0,97807.0,0.72692509]
[1733825813295,0.002,97816.0,97808.0,0.40033949]
[1733825813296,0.051102,97809.0,97808.0,0.40033949]
[1733825813786,0.051102,97809.0,97808.0,0.66777529]
[1733825814392,0.051102,97809.0,97808.0,0.40033949]
[1733825814686,0.051102,97809.0,97808.0,0.66777529]
[1733825814889,0.051102,97809.0,97808.0,1.03390038]
[1733825814890,0.001,97809.0,97808.0,1.03390038]
[1733825815090,0.001,97809.0,97808.0,1.03439405]
[1733825815289,0.052102,97809.0,97808.0,0.66777529]
[1733825816392,0.052102,97809.0,97808.0,0.66877529]
[1733825816786,0.07284528,97809.0,97808.0,0.66877529]
[1733825816985,0.07184528,97809.0,97808.0,0.66877529]
[1733825817397,0.09344095,97826.0,97808.0,0.301]
[1733825817604,0.051071,97868.0,97830.0,0.051091]
[1733825817902,0.33511814,97942.0,97825.0,0.772693]
[1733825817903,0.10275778,97890.0,97867.0,0.3608]
[1733825818101,0.15381678,97890.0,97889.0,0.7216]
[1733825818287,0.051059,97890.0,97889.0,0.72164]
[1733825818593,1.5,97890.0,97889.0,0.72164]
[1733825819098,1.5,97890.0,97889.0,0.28664698]
[1733825819691,1.5,97890.0,97889.0,0.24066964]
[1733825819895,1.9268,97890.0,97875.0,0.3608]
[1733825820096,0.051067,97876.0,97875.0,0.3608]
[1733825820391,0.3608,97876.0,97816.0,0.1457]
[1733825820600,0.3608,97876.0,97810.0,0.10275778]
[1733825820601,0.3608,97820.0,97817.0,0.39978257]
[1733825820795,0.7278,97890.0,97818.0,0.39978257]
[1733825820796,0.10275778,97830.0,97818.0,0.39978257]
[1733825820997,0.12179564,97824.0,97816.0,0.135]
[1733825821191,0.15224455,97832.0,97823.0,0.3608]
[1733825821391,0.10275778,97850.0,97835.0,0.051088]
[1733825821597,0.10275778,97850.0,97843.0,0.3608]
[1733825821984,0.10255326,97853.0,97843.0,0.3608]
[1733825822189,0.10255326,97853.0,97851.0,0.3608]
[1733825822394,0.051076,97859.0,97852.0,4e-05]
[1733825822790,0.051076,97859.0,97858.0,4e-05]
[1733825824197,0.871076,97859.0,97858.0,4e-05]
[1733825824797,0.871076,97859.0,97858.0,0.00104]
[1733825824997,0.871076,97859.0,97858.0,0.00404]
[1733825825701,0.871076,97859.0,97858.0,0.00304]
[1733825826096,0.9207548,97859.0,97858.0,0.00304]
[1733825826299,0.871076,97859.0,97858.0,0.00304]
[1733825826602,0.92075452,97859.0,97858.0,0.00304]
[1733825826800,0.92075452,97859.0,97833.0,0.3608]
[1733825826801,0.051087,97837.0,97833.0,0.3608]
[1733825827109,8e-05,97834.0,97833.0,0.3608]
[1733825828199,0.3608,97846.0,97833.0,0.3648]
[1733825828401,0.00060001,97859.0,97845.0,0.3608]
[1733825828594,0.10255326,97860.0,97858.0,0.3608]
[1733825828795,0.10255326,97868.0,97858.0,0.3608]
[1733825829104,0.051073,97864.0,97859.0,4e-05]
[1733825829415,0.10255326,97868.0,97859.0,4e-05]
[1733825829601,0.051073,97865.0,97859.0,4e-05]
[1733825829795,0.10255326,97868.0,97859.0,4e-05]
[1733825829999,0.051073,97864.0,97859.0,4e-05]
[1733825830501,0.10255326,97868.0,97859.0,0.00104]
[1733825830705,0.051074,97863.0,97859.0,0.00104]
[1733825831206,0.10255326,97868.0,97859.0,0.00104]
[1733825831404,0.051075,97861.0,97859.0,0.00104]
[1733825831603,0.04669524,97861.0,97859.0,0.00404]
[1733825832710,0.3608,97864.0,97859.0,0.00404]
[1733825832900,0.051075,97860.0,97859.0,0.00404]
[1733825834304,0.051075,97860.0,97859.0,4e-05]
[1733825834607,0.051075,97860.0,97859.0,0.00404]
[1733825835505,0.051075,97860.0,97859.0,0.00104]
[1733825835707,0.051075,97860.0,97859.0,0.00404]
[1733825836307,0.02013632,97860.0,97838.0,0.1736]
[1733825836499,0.051086,97839.0,97838.0,0.1736]
[1733825836704,0.051166,97839.0,97838.0,0.1736]
[1733825837698,0.00108,97839.0,97838.0,0.1826]
[1733825838605,0.00108,97839.0,97838.0,0.533687]
[1733825838804,0.051074,97863.0,97846.0,0.051082]
[1733825839001,0.051077,97857.0,97853.0,0.3608]
[1733825840200,0.051078,97854.0,97853.0,0.3608]
[1733825840712,0.051078,97854.0,97853.0,0.3628]
[1733825841111,0.051078,97854.0,97853.0,0.3678]
[1733825841611,0.051078,97854.0,97853.0,0.002]
[1733825841807,0.051078,97854.0,97853.0,0.007]
[1733825843504,0.051078,97854.0,97853.0,0.002]
[1733825843711,0.051078,97854.0,97853.0,0.007]
[1733825844112,0.051078,97854.0,97853.0,0.002]
[1733825844306,0.051078,97854.0,97853.0,0.007]
[1733825845314,0.1007525,97854.0,97853.0,0.007]
[1733825846305,0.051086,97839.0,97838.0,0.00096]
[1733825846508,0.46156682,97839.0,97838.0,0.00096]
[1733825846815,0.41056082,97839.0,97822.0,0.1699]
[1733825847024,0.051093,97826.0,97822.0,0.1699]
[1733825847213,8e-05,97823.0,97822.0,0.1699]
[1733825847414,0.051174,97823.0,97822.0,0.1699]
[1733825848216,0.051174,97823.0,97822.0,0.1789]
[1733825848807,8e-05,97823.0,97822.0,0.1789]
[1733825849114,8e-05,97823.0,97822.0,0.1849]
[1733825849508,8e-05,97823.0,97822.0,0.015]
[1733825849814,0.052174,97823.0,97822.0,0.012]
[1733825850217,0.00108,97823.0,97822.0,0.012]
[1733825850715,8e-05,97823.0,97822.0,0.006]
[1733825850923,0.00108,97823.0,97822.0,0.012]
[1733825851216,0.00108,97823.0,97822.0,0.006]
[1733825851415,0.00108,97823.0,97822.0,0.012]
[1733825851620,0.052174,97823.0,97822.0,0.012]
[1733825852123,0.052174,97823.0,97822.0,0.009]
[1733825852909,0.052174,97823.0,97822.0,0.01]
[1733825854213,0.052174,97823.0,97822.0,0.011]
[1733825854516,0.052174,97823.0,97822.0,0.01]
[1733825855819,0.10186292,97823.0,97822.0,0.009]
[1733825856017,0.10186292,97823.0,97822.0,0.008]
[1733825856522,0.1009664,97823.0,97822.0,0.00510545]
[1733825857016,0.1019664,97823.0,97822.0,0.00610545]
[1733825857224,0.28524266,97823.0,97822.0,0.00610545]
[1733825857520,0.28524266,97823.0,97822.0,0.00010545]
[1733825857521,0.1009664,97823.0,97822.0,0.00010545]
[1733825857820,0.1009664,97823.0,97822.0,0.00210545]
[1733825858221,0.1009664,97823.0,97822.0,0.00510545]
[1733825858523,0.051104,97805.0,97802.0,0.3608]
[1733825858714,0.3608,97811.0,97803.0,0.00319473]
[1733825858916,0.3608,97811.0,97804.0,0.00319473]
[1733825859113,0.3608,97811.0,97805.0,0.00319473]
[1733825859315,0.3608,97811.0,97806.0,0.00319473]
[1733825859622,0.3608,97811.0,97807.0,0.00319473]
[1733825859815,0.3618,97811.0,97807.0,0.00319473]
[1733825860015,0.3618,97811.0,97808.0,0.00319473]
[1733825860222,0.3618,97811.0,97809.0,0.00319473]
[1733825860415,0.412901,97811.0,97810.0,0.00319473]
[1733825862025,0.412901,97811.0,97810.0,0.00519473]
[1733825862615,0.412901,97811.0,97810.0,0.00719473]
[1733825862813,0.412901,97811.0,97810.0,0.00919473]
[1733825863021,0.411901,97811.0,97810.0,0.00519473]
[1733825863330,0.412901,97811.0,97810.0,0.00719473]
[1733825865117,0.412901,97811.0,97810.0,0.00519473]
[1733825865322,0.412901,97811.0,97810.0,0.00719473]
[1733825865523,0.412901,97811.0,97810.0,0.00919491]
[1733825866024,0.052101,97811.0,97810.0,0.00919491]
[1733825866825,0.001,97811.0,97810.0,0.00919491]
[1733825867030,0.001,97811.0,97810.0,0.42109582]
[1733825867324,0.001,97811.0,97810.0,0.72109582]
[1733825867927,0.001,97811.0,97810.0,0.42109582]
[1733825868529,0.051097,97819.0,97814.0,0.051099]
[1733825868720,0.02022688,97823.0,97814.0,0.051099]
[1733825868721,0.051098,97817.0,97814.0,0.051099]
[1733825869026,0.051098,97817.0,97815.0,0.05429282]
[1733825869327,0.051098,97817.0,97816.0,0.00319482]
[1733825871132,0.051098,97817.0,97816.0,0.00419482]
[1733825871731,0.051098,97817.0,97816.0,0.00419457]
[1733825871929,0.051098,97817.0,97816.0,0.00719457]
[1733825872228,0.00010348,97823.0,97816.0,0.00919457]
[1733825872429,0.00010348,97823.0,97820.0,0.051095]
[1733825872729,0.00010348,97823.0,97821.0,0.00319457]
[1733825872930,0.00010348,97823.0,97822.0,0.00319457]
[1733825873831,0.00110348,97823.0,97822.0,0.00319457]
[1733825874525,0.00110348,97823.0,97822.0,0.00519457]
[1733825874732,0.00110348,97823.0,97822.0,0.00519437]
[1733825875433,0.00110348,97823.0,97822.0,0.002]
[1733825875623,0.00110348,97823.0,97822.0,0.06028937]
[1733825877824,0.05219748,97823.0,97822.0,0.00919437]
[1733825878145,0.05219748,97823.0,97822.0,0.006]
[1733825878332,0.05219748,97823.0,97822.0,0.00919432]
[1733825878726,0.2052277,97823.0,97822.0,0.00919432]
[1733825878939,0.05219748,97823.0,97822.0,0.00919432]
[1733825879731,0.2052277,97823.0,97822.0,0.00919432]
[1733825879935,0.07712711,97823.0,97822.0,0.00919432]
[1733825881233,0.07712711,97823.0,97813.0,0.18347475]
[1733825881234,0.051099,97815.0,97813.0,0.18347475]
[1733825881423,0.051103,97807.0,97804.0,0.18347475]
[1733825881625,0.051103,97807.0,97791.0,0.30579125]
[1733825881626,0.051104,97805.0,97802.0,0.18359961]
[1733825881827,0.5338,97814.0,97813.0,0.0511]
[1733825881828,0.00060001,97814.0,97813.0,0.0511]
[1733825882026,0.00110348,97823.0,97822.0,0.051095]
[1733825882228,0.00110348,97823.0,97822.0,0.411895]
[1733825882833,0.00010348,97823.0,97822.0,0.411895]
[1733825883028,0.00010348,97823.0,97822.0,0.65673051]
[1733825883231,0.00010348,97823.0,97822.0,0.411895]
[1733825883432,0.00010348,97823.0,97822.0,0.414895]
[1733825883639,0.00010348,97823.0,97822.0,0.44085608]
[1733825884936,0.00010348,97823.0,97822.0,0.74085608]
[1733825886241,0.00010348,97823.0,97822.0,0.68542502]
[1733825886632,0.00010348,97823.0,97822.0,0.415895]
[1733825887447,0.05119748,97823.0,97822.0,0.415895]
[1733825887634,0.00010348,97823.0,97822.0,0.415895]
[1733825888342,0.00010348,97823.0,97822.0,0.46061235]
[1733825888640,0.00010348,97823.0,97822.0,0.415895]
[1733825890338,0.00010348,97823.0,97822.0,0.3648]
[1733825890639,0.00010348,97823.0,97822.0,0.004]
[1733825890844,0.00010348,97823.0,97813.0,0.411939]
[1733825891037,0.051095,97821.0,97815.0,0.051098]
[1733825891235,0.00010348,97823.0,97815.0,0.051098]
[1733825891644,0.00010348,97823.0,97822.0,4e-05]
[1733825892441,0.00110348,97823.0,97822.0,4e-05]
[1733825892942,0.00010348,97823.0,97822.0,4e-05]
[1733825893139,0.00010348,97823.0,97822.0,0.00104]
[1733825893335,0.05119748,97823.0,97822.0,0.00423451]
[1733825893650,0.05119748,97823.0,97822.0,0.00423473]
[1733825894339,0.051096,97820.0,97813.0,0.36084]
[1733825895340,0.051096,97820.0,97814.0,0.00511159]
[1733825895535,0.051096,97820.0,97815.0,0.00511159]
[1733825895736,0.051096,97820.0,97816.0,0.00511159]
[1733825895940,0.1738,97822.0,97817.0,0.00511159]
[1733825896243,0.1738,97822.0,97821.0,0.411935]
[1733825896443,0.1738,97822.0,97821.0,0.41704659]
[1733825897051,0.1738,97822.0,97821.0,0.6004866]
[1733825897344,0.1738,97822.0,97821.0,0.41704659]
[1733825899051,0.00010348,97823.0,97822.0,0.051095]
[1733825899255,0.00010348,97823.0,97822.0,0.05620659]
[1733825899436,0.00010348,97823.0,97822.0,0.05624659]
[1733825899942,0.00010348,97823.0,97822.0,0.05624617]
[1733825901353,0.00010348,97823.0,97822.0,0.05724617]
[1733825903543,0.00010348,97823.0,97822.0,0.05724569]
[1733825906346,0.00010348,97823.0,97822.0,0.06043988]
[1733825907251,0.02240116,97823.0,97822.0,0.06043988]
[1733825908544,0.02240116,97823.0,97822.0,0.00934488]
[1733825908749,0.02240116,97823.0,97822.0,0.19300309]
[1733825908951,0.02240116,97823.0,97822.0,0.24409809]
[1733825908952,0.00010348,97823.0,97822.0,0.24409809]
[1733825909159,0.00010348,97823.0,97822.0,0.24409934]
[1733825909356,0.00010348,97823.0,97822.0,0.05532933]
[1733825909657,0.00010348,97823.0,97822.0,0.06044025]
[1733825910050,0.00010348,97823.0,97822.0,0.00934525]
[1733825910244,0.00010348,97823.0,97822.0,0.00423433]
[1733825910451,0.00010348,97823.0,97822.0,0.18790427]
[1733825911052,0.00010348,97823.0,97822.0,0.00423434]
[1733825911253,0.00010348,97823.0,97821.0,0.36212]
[1733825911552,0.00010348,97823.0,97815.0,0.18366994]
[1733825911553,0.051095,97822.0,97815.0,0.18366994]
[1733825911752,0.3608,97821.0,97814.0,0.18366994]
[1733825912058,0.3608,97821.0,97805.0,0.18366994]
[1733825912059,0.15307098,97815.0,97805.0,0.18366994]
[1733825912254,0.51387098,97812.0,97801.0,0.18366994]
[1733825912457,8e-05,97806.0,97803.0,0.04472957]
[1733825912754,8e-05,97806.0,97799.0,0.18366994]
[1733825912952,8e-05,97803.0,97799.0,0.18366994]
[1733825913152,0.00016,97803.0,97799.0,0.18366994]
[1733825913353,0.00016,97803.0,97798.0,0.23477694]
[1733825913556,0.36096,97803.0,97797.0,0.18366994]
[1733825913854,0.38307103,97803.0,97794.0,0.18366994]
[1733825914358,0.38307103,97803.0,97802.0,0.00512486]
[1733825914558,0.38307103,97803.0,97787.0,0.18366994]
[1733825914746,0.38307103,97803.0,97765.0,0.5382]
[1733825914747,0.051111,97792.0,97785.0,0.18366994]
[1733825914948,0.3608,97793.0,97778.0,0.18366994]
[1733825914949,8e-05,97788.0,97778.0,0.18366994]
[1733825915148,0.3608,97779.0,97774.0,0.18366994]
[1733825915357,0.3608,97779.0,97769.0,0.18366994]
[1733825915358,0.1607,97778.0,97769.0,0.18366994]
[1733825915559,0.1607,97778.0,97771.0,0.00011815]
[1733825915560,8e-05,97775.0,97771.0,0.00011815]
[1733825915753,0.051119,97777.0,97771.0,0.00011815]
[1733825916153,0.051119,97777.0,97776.0,4e-05]
[1733825917157,0.1607,97778.0,97776.0,4e-05]
[1733825917358,0.1607,97778.0,97776.0,0.00204]
[1733825917657,0.1607,97778.0,97777.0,4e-05]
[1733825918663,0.1617,97778.0,97777.0,4e-05]
[1733825918857,0.3256,97778.0,97777.0,4e-05]
[1733825919351,0.1649,97778.0,97777.0,4e-05]
[1733825921059,0.1649,97778.0,97777.0,0.00104]
[1733825923357,0.18566124,97778.0,97777.0,0.00104]
[1733825924766,0.1649,97778.0,97777.0,0.00104]
[1733825925162,0.18550374,97778.0,97777.0,0.00104]
[1733825927557,0.18450374,97778.0,97777.0,0.00104]
[1733825927762,0.18550374,97778.0,97777.0,0.00104]
[1733825928466,0.001,97778.0,97777.0,0.05535354]
[1733825928866,0.1725,97794.0,97790.0,0.051112]
[1733825929963,0.1725,97794.0,97790.0,0.051152]
[1733825930169,0.19720851,97791.0,97790.0,0.051152]
[1733825930769,0.19920851,97791.0,97790.0,0.051152]
[1733825931162,0.20020851,97791.0,97790.0,4e-05]
[1733825933072,0.1801,97791.0,97790.0,4e-05]
[1733825935269,0.20069303,97791.0,97790.0,4e-05]
[1733825937174,0.20069303,97791.0,97790.0,0.00323548]
[1733825938475,0.20069303,97791.0,97790.0,0.05434748]
[1733825938980,0.20069303,97791.0,97790.0,0.051152]
[1733825939171,0.20069303,97791.0,97790.0,0.05434751]
[1733825939567,0.20069303,97791.0,97790.0,0.00323551]
[1733825940878,0.25180403,97791.0,97790.0,0.00323551]
[1733825941082,0.25180403,97791.0,97790.0,0.00323558]
[1733825941377,0.23180403,97791.0,97790.0,0.00323558]
[1733825941572,0.38487501,97791.0,97790.0,0.00323558]
[1733825941767,0.23180403,97791.0,97790.0,0.00323558]
[1733825942167,0.38487501,97791.0,97790.0,0.00323558]
[1733825942370,0.28150946,97791.0,97790.0,0.00323558]
[1733825942883,0.051115,97784.0,97772.0,0.18366994]
[1733825943085,0.051115,97784.0,97771.0,0.05123915]
[1733825943086,0.09178596,97777.0,97771.0,0.00011815]
[1733825943273,0.3608,97784.0,97771.0,0.00011815]
[1733825943274,0.216919,97776.0,97771.0,0.00011815]
[1733825943474,0.33930028,97776.0,97771.0,0.00011815]
[1733825943678,0.216919,97776.0,97771.0,0.00011815]
[1733825944276,0.577719,97776.0,97771.0,0.00011815]
[1733825944479,0.6795766,97776.0,97771.0,0.00011815]
[1733825944778,0.051201,97772.0,97771.0,0.00011815]
[1733825945886,8e-05,97772.0,97771.0,0.00211815]
[1733825946281,0.00108,97772.0,97771.0,0.00211815]
[1733825946478,0.00108,97772.0,97771.0,0.00011815]
[1733825946782,0.00108,97772.0,97771.0,0.00111815]
[1733825947774,0.051201,97772.0,97771.0,0.00111815]
[1733825947988,0.052201,97772.0,97771.0,0.00111815]
[1733825948381,0.051201,97772.0,97771.0,0.00111815]
[1733825948677,0.052201,97772.0,97771.0,0.00111815]
[1733825949080,0.5659776,97772.0,97756.0,0.18366994]
[1733825949381,0.5659776,97772.0,97752.0,0.18366994]
[1733825949382,0.09181337,97758.0,97752.0,0.18366994]
[1733825949579,0.14294237,97757.0,97751.0,0.18366994]
[1733825949781,8e-05,97753.0,97751.0,0.18366994]
[1733825949973,8e-05,97752.0,97751.0,0.18366994]
[1733825950175,8e-05,97752.0,97751.0,0.18377807]
[1733825950580,8e-05,97752.0,97751.0,0.00010813]
[1733825950979,8e-05,97752.0,97751.0,0.05124013]
[1733825951383,8e-05,97752.0,97751.0,0.00010813]
[1733825951779,8e-05,97752.0,97751.0,0.04485961]
[1733825952183,8e-05,97752.0,97751.0,0.04785961]
[1733825952674,0.00108,97752.0,97751.0,0.04785961]
[1733825952880,0.00108,97752.0,97751.0,0.04675148]
[1733825953089,8e-05,97752.0,97743.0,0.54578994]
[1733825953286,0.0928162,97752.0,97742.0,0.18366994]
[1733825953489,8e-05,97744.0,97739.0,0.051138]
[1733825953684,8e-05,97743.0,97734.0,0.20636369]
[1733825953892,8e-05,97740.0,97738.0,0.051139]
[1733825954184,0.0918162,97743.0,97739.0,0.00010265]
[1733825954393,0.00999939,97742.0,97739.0,0.00010265]
[1733825954689,0.3608,97741.0,97740.0,0.051138]
[1733825955084,0.3608,97741.0,97739.0,0.00010265]
[1733825955085,8e-05,97743.0,97742.0,0.051137]
[1733825955283,8e-05,97743.0,97742.0,0.054137]
[1733825955487,0.00108,97743.0,97742.0,0.054137]
[1733825955783,0.00108,97743.0,97742.0,0.29851486]
[1733825955986,0.01000644,97751.0,97750.0,0.051133]
[1733825956282,0.00010556,97754.0,97750.0,0.051133]
[1733825956283,0.00010556,97754.0,97753.0,0.051131]
[1733825956686,0.00010556,97754.0,97753.0,0.051171]